lending/lending_fUSD_20250406
["ID","MTS","AMOUNT","RATE_DAILY","PERIOD"]
[357253066,1743943846291,-27.1647902,0.007499,120]
[357253074,1743944206141,253.38295183,0.0009,2]
[357253075,1743944220393,300.0,0.0009,2]
[357253076,1743944248857,-215159.0,0.00095,120]
[357253077,1743944248880,-177.22919979,0.00099899,2]
[357253078,1743944248902,-4107.044,0.000999,2]
[357253079,1743944248925,-500.0,0.00099999,120]
[357253080,1743944248947,-500.0,0.00099999,120]
[357253081,1743944248970,-500.0,0.00099999,120]
[357253082,1743944248997,-500.0,0.00099999,120]
[357253083,1743944249020,-500.0,0.00099999,120]
[357253084,1743944249042,-500.0,0.00099999,120]
[357253085,1743944249065,-500.0,0.00099999,120]
[357253086,1743944249087,-500.0,0.00099999,120]
[357253087,1743944249109,-500.0,0.00099999,120]
[357253088,1743944249135,-500.0,0.00099999,120]
[357253089,1743944249158,-500.0,0.00099999,120]
[357253090,1743944249181,-500.0,0.00099999,120]
[357253091,1743944249203,-500.0,0.00099999,120]
[357253092,1743944249226,-500.0,0.00099999,120]
[357253093,1743944249248,-500.0,0.00099999,120]
[357253094,1743944249271,-500.0,0.00099999,120]
[357253095,1743944249294,-500.0,0.00099999,120]
[357253096,1743944249316,-500.0,0.00099999,120]
[357253097,1743944249338,-500.0,0.00099999,120]
[357253098,1743944249364,-561.38112502,0.00099999,120]
[357253099,1743944249388,-500.0,0.00099999,120]
[357253100,1743944249411,-500.0,0.00099999,120]
[357253101,1743944249441,-500.0,0.00099999,120]
[357253102,1743944249470,-500.0,0.00099999,120]
[357253103,1743944249495,-500.0,0.00099999,120]
[357253104,1743944249518,-404.38096197,0.00099999,120]
[357253105,1743944249543,-150.0,0.00099999,120]
[357253106,1743944249567,-500.0,0.00099999,120]
[357253107,1743944249590,-500.0,0.00099999,120]
[357253108,1743944249614,-500.0,0.00099999,120]
[357253109,1743944249640,-500.0,0.00099999,120]
[357253110,1743944249664,-500.0,0.00099999,120]
[357253111,1743944249846,-500.0,0.00099999,120]
[357253112,1743944249871,-500.0,0.00099999,120]
[357253113,1743944249896,-600.0,0.00099999,120]
[357253114,1743944249921,-898797.94371322,0.001,120]
[357253115,1743944261195,-50000.0,0.001,120]
[357253116,1743944262977,-50000.0,0.001,120]
[357253117,1743944263859,-50000.0,0.001,120]
[357253118,1743944264696,-50000.0,0.001,120]
[357253119,1743944265520,-36659.03528678,0.001,120]
[357253120,1743944329348,1893.9511,0.000999,120]
[357253121,1743944337474,1100.0,0.00099,120]
[357253122,1743944391773,47006.0489,0.001,120]
[357253123,1743944593156,49446.61704817,0.0008,120]
[357253124,1743944593180,50000.0,0.0008,120]
[357253125,1743944593204,50000.0,0.0008,120]
[357253126,1743944683869,-50000.0,0.0009499,8]
[357253127,1743944684969,-29063.5633747,0.0009499,8]
[357253128,1743944684997,-500.0,0.00094999,120]
[357253129,1743944685022,-500.0,0.00094999,120]
[357253130,1743944685047,-500.0,0.00094999,120]
[357253131,1743944685071,-500.0,0.00094999,120]
[357253132,1743944685096,-500.0,0.00094999,120]
[357253133,1743944685121,-617.96678751,0.00094999,120]
[357253134,1743944685146,-500.0,0.00094999,120]
[357253135,1743944685171,-500.0,0.00094999,120]
[357253136,1743944685194,-459.95558463,0.00094999,120]
[357253137,1743944685219,-500.0,0.00094999,120]
[357253138,1743944685243,-500.0,0.00094999,120]
[357253139,1743944685268,-500.0,0.00094999,120]
[357253140,1743944685293,-500.0,0.00094999,120]
[357253141,1743944685318,-500.0,0.00094999,120]
[357253142,1743944685345,-500.0,0.00094999,120]
[357253143,1743944685370,-500.0,0.00094999,120]
[357253144,1743944685396,-500.0,0.00094999,120]
[357253145,1743944685422,-500.0,0.00094999,120]
[357253146,1743944685447,-500.0,0.00094999,120]
[357253147,1743944685473,-500.0,0.00094999,120]
[357253148,1743944685500,-500.0,0.00094999,120]
[357253149,1743944685525,-500.0,0.00094999,120]
[357253150,1743944685549,-500.0,0.00094999,120]
[357253151,1743944685574,-500.0,0.00094999,120]
[357253152,1743944685599,-300.0,0.00094999,120]
[357253153,1743944685628,-500.0,0.00094999,120]
[357253154,1743944685660,-500.0,0.00094999,120]
[357253155,1743944685686,-232.57675126,0.00094999,120]
[357253156,1743944685713,-500.0,0.00094999,120]
[357253157,1743944685739,-6825.9375019,0.00095,120]
[357253158,1743944686425,-50000.0,0.00095,120]
[357253159,1743944687453,-50000.0,0.00095,120]
[357253160,1743944688470,-50000.0,0.00095,120]
[357253161,1743944700484,-50000.0,0.00095,120]
[357253162,1743944701397,-50000.0,0.00095,120]
[357253163,1743944702243,-50000.0,0.00095,120]
[357253164,1743944703074,-50000.0,0.00095,120]
[357253165,1743944703964,-50000.0,0.00095,120]
[357253166,1743944742941,576.0788265,0.00048,120]
[357253168,1743944831146,-1396.35496384,0.00078,120]
[357253169,1743944833158,43174.0624981,0.00075,120]
[357253170,1743944834139,-2115.15086959,0.00078,120]
[357253171,1743944841111,-217.35586764,0.0007799,120]
[357253172,1743944843091,-789.55172525,0.0007799,120]
[357253173,1743944853146,-1216.55301176,0.0007799,120]
[357253174,1743944859209,500.0,0.00075,120]
[357253175,1743944949069,347.30643148,0.00075,2]
[357253176,1743944981704,500.0,0.00075,120]
[357253180,1743945032080,-183.7151539,0.000779,2]
[357253181,1743945032091,-826.78804255,0.0007799,120]
[357253182,1743945032101,-321.73832356,0.00078899,2]
[357253183,1743945032111,-500.0,0.00078999,120]
[357253184,1743945032121,-231.96890924,0.00078999,120]
[357253185,1743945032131,-500.0,0.00078999,120]
[357253186,1743945032140,-500.0,0.00078999,120]
[357253187,1743945032149,-500.0,0.00078999,120]
[357253188,1743945032159,-500.0,0.00078999,120]
[357253189,1743945032168,-500.0,0.00078999,120]
[357253190,1743945032178,-500.0,0.00078999,120]
[357253191,1743945032188,-500.0,0.00078999,120]
[357253192,1743945032198,-453.62695971,0.00078999,120]
[357253193,1743945032207,-500.0,0.00078999,120]
[357253194,1743945032217,-500.0,0.00078999,120]
[357253195,1743945032226,-500.0,0.00078999,120]
[357253196,1743945032235,-500.0,0.00078999,120]
[357253197,1743945032244,-500.0,0.00078999,120]
[357253198,1743945032253,-500.0,0.00078999,120]
[357253199,1743945032262,-500.0,0.00078999,120]
[357253200,1743945032272,-500.0,0.00078999,120]
[357253201,1743945032281,-500.0,0.00078999,120]
[357253202,1743945032290,-500.0,0.00078999,120]
[357253203,1743945032300,-500.0,0.00078999,120]
[357253204,1743945032310,-500.0,0.00078999,120]
[357253205,1743945032320,-338.41117765,0.00078999,120]
[357253206,1743945032329,-500.0,0.00078999,120]
[357253207,1743945032339,-500.0,0.00078999,120]
[357253208,1743945032348,-500.0,0.00078999,120]
[357253209,1743945032357,-500.0,0.00078999,120]
[357253210,1743945032367,-500.0,0.00078999,120]
[357253213,1743945032376,-500.0,0.00078999,120]
[357253214,1743945032385,-500.0,0.00078999,120]
[357253216,1743945032395,-500.0,0.00078999,120]
[357253217,1743945032404,-500.0,0.00078999,120]
[357253218,1743945032413,-500.0,0.00078999,120]
[357253219,1743945032422,-500.0,0.00078999,120]
[357253220,1743945032431,-500.0,0.00078999,120]
[357253221,1743945032441,-500.0,0.00078999,120]
[357253222,1743945032450,-500.0,0.00078999,120]
[357253223,1743945032459,-500.0,0.00078999,120]
[357253224,1743945032469,-500.0,0.00078999,120]
[357253225,1743945032478,-500.0,0.00078999,120]
[357253226,1743945032488,-500.0,0.00078999,120]
[357253227,1743945032497,-500.0,0.00078999,120]
[357253228,1743945032507,-500.0,0.00078999,120]
[357253229,1743945032517,-550.0,0.00078999,120]
[357253231,1743945032526,-25332.55392703,0.0007999,6]
[357253233,1743945032538,-327.29223242,0.0007999,6]
[357253271,1743945037904,-1050.14067585,0.0007999,6]
[357253272,1743945037960,-414.04008287,0.0007999,6]
[357253273,1743945037971,-414.26349789,0.0007999,6]
[357253274,1743945038017,-333.794745,0.0007999,6]
[357253275,1743945038029,-11131.09809795,0.0007999,6]
[357253276,1743945038074,-6762.45995051,0.0007999,6]
[357253277,1743945038131,-1779.77800004,0.0007999,6]
[357253278,1743945038142,-1682.2401957,0.0007999,6]
[357253283,1743945039048,308.0,0.00075,120]
[357253289,1743945040142,-4747.86214752,0.0007999,6]
[357253290,1743945040253,-997.65756837,0.0007999,6]
[357253291,1743945040268,-319.6395586,0.0007999,6]
[357253292,1743945040480,-573.674504,0.0007999,6]
[357253349,1743945043661,-13085.93376075,0.0007999,6]
[357253351,1743945043942,-111928.6378695,0.0007999,6]
[357253352,1743945043951,-31648.15970863,0.0007999,120]
[357253364,1743945046282,-444.86942501,0.0007999,120]
[357253365,1743945046314,-135.17255676,0.0007999,120]
[357253370,1743945101483,4594.55224392,0.00075,6]
[357253371,1743945108140,711.0,0.0005,10]
[357253372,1743945139914,166.31498592,0.0007,120]
[357253373,1743945305239,150.0,0.0006,120]
[357253374,1743945344891,46051.16253124,0.0007,3]
[357253375,1743945406816,150.0,0.00065,120]
[357253376,1743945413639,150.0,0.00065,120]
[357253377,1743945430124,358.0,0.0003,10]
[357253378,1743945455514,156.79,0.00026849,2]
[357253379,1743945706041,457.0,0.00065,2]
[357253380,1743945710686,457.0,0.00064,2]
[357253381,1743945716735,457.0,0.00063,2]
[357253382,1743945746279,47814.21,0.00065,120]
[357253383,1743945828476,865.80058078,0.0006,2]
[357253384,1743945908866,3802.03008833,0.00024,2]
[357253385,1743945916893,521.20459195,0.0002,2]
[357253386,1743945928853,44810.96473894,0.00048,2]
[357253387,1743945928878,50000.0,0.00048,2]
[357253388,1743945928903,5584.60470837,0.00048,2]
[357253389,1743945945204,44415.39529163,0.00037,2]
[357253390,1743945945229,43286.5737813,0.00037,2]
[357253391,1743945947756,285.65708952,0.000366,2]
[357253392,1743945955735,6427.76912918,0.0001995,2]
[357253393,1743945955760,961.72636295,0.0001995,2]
[357253394,1743946020296,5000.00042374,0.00024,5]
[357253395,1743946030107,-211.52465826,0.00041,5]
[357253396,1743946054125,-771.21028224,0.00041,5]
[357253399,1743946119226,1810.78215614,0.000232,2]
[357253400,1743946120968,1883.51618869,0.00025,7]
[357253401,1743946122852,7087.89308631,0.0003511,30]
[357253402,1743946125010,531.58290189,0.00028,60]
[357253429,1743946232236,-326.29134845,0.00041,5]
[357253430,1743946232515,-299.11619063,0.00041,5]
[357253431,1743946232632,-352.4819474,0.00041,5]
[357253432,1743946232691,-4995.36766704,0.00041,5]
[357253482,1743946238281,-472.72058518,0.00041,5]
[357253483,1743946238337,-5857.0592671,0.00041,5]
[357253484,1743946238399,-993.74496004,0.00041,5]
[357253485,1743946238411,-981.61047294,0.00041,5]
[357253486,1743946238420,-823.48595809,0.00044899,2]
[357253487,1743946238430,-1347.4543,0.000449,2]
[357253488,1743946238439,-455.6971,0.000449,2]
[357253489,1743946238449,-562.32289314,0.00044999,2]
[357253490,1743946238458,-500.0,0.00044999,120]
[357253491,1743946238468,-500.0,0.00044999,120]
[357253492,1743946238478,-612.37823647,0.00044999,120]
[357253493,1743946238489,-500.0,0.00044999,120]
[357253494,1743946238498,-500.0,0.00044999,120]
[357253495,1743946238509,-178696.869603,0.00045,2]
[357253497,1743946238518,-317.65631598,0.00045,2]
[357253498,1743946238528,-221.92831305,0.00047,14]
[357253499,1743946238537,-2215.52641747,0.000475,120]
[357253500,1743946238547,-500.0,0.00047945,120]
[357253501,1743946238557,-320.93457529,0.00047945,120]
[357253502,1743946238567,-500.0,0.00047945,120]
[357253503,1743946238576,-157.69454689,0.000517,2]
[357253504,1743946238586,-1708.47597506,0.000518,120]
[357253505,1743946238595,-250.0,0.00056087,2]
[357253506,1743946238604,-157.69454689,0.00058295,2]
[357253508,1743946238614,-206.67886963,0.00060942,15]
[357253509,1743946238623,-865.80058078,0.00061,2]
[357253510,1743946238632,-865.80058078,0.000619,2]
[357253511,1743946238641,-865.80058078,0.00062,2]
[357253512,1743946238650,-865.80058078,0.00063,2]
[357253513,1743946238659,-865.80058078,0.00064,2]
[357253514,1743946238668,-1200.0,0.00064,2]
[357253515,1743946238678,-628.86951865,0.00064498,120]
[357253516,1743946238687,-157.69454689,0.0006489,2]
[357253517,1743946238697,-161.01442871,0.0006489,15]
[357253518,1743946238706,-716.08403838,0.000649,36]
[357253519,1743946238716,-6000.0,0.00064987,120]
[357253520,1743946238726,-579.74700901,0.0006499,5]
[357253521,1743946238736,-6956.96410812,0.0006499,5]
[357253522,1743946238745,-500.0,0.00064999,120]
[357253523,1743946238754,-500.0,0.00064999,2]
[357253524,1743946238765,-288.50749193,0.00064999,120]
[357253525,1743946238775,-564.6505359,0.00064999,120]
[357253526,1743946238784,-500.0,0.00064999,2]
[357253527,1743946238794,-500.0,0.00064999,2]
[357253528,1743946238804,-1305.71723971,0.00065,61]
[357253529,1743946238814,-113157.78721922,0.00065,61]
[357253530,1743946238823,-669917.55283568,0.00065,120]
[357253535,1743946240830,-539.35172383,0.00065,120]
[357253536,1743946240942,-805.42637062,0.00065,120]
[357253537,1743946241054,-18183.08542466,0.00065,120]
[357253538,1743946241114,-1217.28802059,0.00065,120]
[357253576,1743946243666,-452.85849443,0.00065,120]
[357253577,1743946243678,-70790.82109657,0.00065,120]
[357253598,1743946243960,-117932.12949952,0.00065,120]
[357253783,1743946246295,-477.88240482,0.00065,120]
[357253784,1743946246354,-45900.60000017,0.00065,120]
[357253785,1743946246414,-353.42852532,0.00065,120]
[357253786,1743946246425,-264.51321537,0.00065,120]
[357253966,1743946516991,313.6214174,0.00045178,120]
[357253968,1743946804885,156.79,0.00026849,2]
[357253970,1743947040573,500.0,0.00045112,120]
[357253971,1743947079705,250.0,0.00019,2]
[357253972,1743947080831,300.0,0.00021,2]
[357253973,1743947102447,150.0,0.00034548,10]
[357253974,1743947111308,500.0,0.00045112,120]
[357253975,1743947126998,500.0,0.00045112,120]
[357253976,1743947225170,-2215.0,0.000475,120]
[357253977,1743947225194,-177.22919979,0.000491,2]
[357253978,1743947225217,-192.42125357,0.000492,120]
[357253979,1743947225239,-285.45883079,0.00049315,120]
[357253980,1743947225260,-157.69454689,0.0004979,2]
[357253981,1743947225282,-2137.7888,0.0004989,2]
[357253982,1743947225307,-500.0,0.0005065,120]
[357253983,1743947225331,-169.49,0.00050853,2]
[357253984,1743947225354,-160.633,0.00050853,91]
[357253985,1743947225377,-160.595,0.00050853,91]
[357253986,1743947225399,-9560.35,0.000509,120]
[357253987,1743947225421,-1671.76006033,0.00051,120]
[357253988,1743947226155,-1307.09842206,0.00051,120]
[357253989,1743947227085,-678.85623252,0.00051,120]
[357253990,1743947347096,-1582.24465045,0.0004979,2]
[357253991,1743947350204,-771.15022316,0.0004979,2]
[357253992,1743947363166,-266.21493958,0.0004979,2]
[357254001,1743947432281,-1372.65758095,0.0004979,2]
[357254003,1743947432339,-151.16250586,0.0004979,2]
[357254004,1743947432349,-553.25023919,0.00051,120]
[357254005,1743947432397,-951.45819651,0.00051,120]
[357254006,1743947432409,-255.23907033,0.00051,120]
[357254007,1743947432456,-4045.90799304,0.00051,120]
[357254008,1743947432516,-96.77978602,0.00051,120]
[357254009,1743947432530,-157.69454689,0.00051168,2]
[357254010,1743947432540,-500.0,0.000546,120]
[357254011,1743947432549,-500.0,0.0005517,120]
[357254012,1743947432559,-164.68,0.00055545,2]
[357254013,1743947432569,-150.0,0.00056271,7]
[357254014,1743947432578,-280.7,0.00056488,30]
[357254015,1743947432588,-426.32,0.00056701,2]
[357254016,1743947432597,-1444.02039924,0.00056701,2]
[357254017,1743947432609,-675.93652626,0.00056701,2]
[357254018,1743947436832,-1920.36160627,0.00056701,2]
[357254033,1743947438253,-474.22399088,0.00056701,2]
[357254034,1743947438264,-19385.45747735,0.00056701,2]
[357254035,1743947438274,-2729.87,0.00057306,2]
[357254036,1743947438283,-9560.35,0.000574,120]
[357254037,1743947438292,-169.98,0.00057573,2]
[357254038,1743947438301,-1000.0,0.00057836,30]
[357254039,1743947438310,-150.01,0.00058064,120]
[357254040,1743947438319,-367.86,0.0005841,30]
[357254041,1743947438328,-157.69454689,0.000589,2]
[357254042,1743947438337,-1501.71,0.00058992,2]
[357254043,1743947438347,-500.0,0.00058999,120]
[357254044,1743947438356,-500.0,0.00058999,120]
[357254045,1743947438365,-277.96572951,0.00058999,120]
[357254046,1743947438374,-500.0,0.00058999,120]
[357254047,1743947438384,-500.0,0.00058999,120]
[357254048,1743947438393,-500.0,0.00058999,120]
[357254049,1743947438402,-500.0,0.00058999,120]
[357254050,1743947438411,-500.0,0.00058999,120]
[357254051,1743947438420,-500.0,0.00058999,120]
[357254052,1743947438429,-500.0,0.00058999,120]
[357254053,1743947438438,-250.0,0.00058999,120]
[357254054,1743947438448,-1594.0,0.00059,120]
[357254055,1743947438458,-88888.0,0.00059,120]
[357254056,1743947438467,-200.0,0.00059169,2]
[357254057,1743947438477,-293.19199722,0.00059763,15]
[357254058,1743947438487,-420.0,0.0005979,2]
[357254059,1743947438496,-1000.0,0.00059792,120]
[357254060,1743947438506,-716.08403838,0.000598,31]
[357254061,1743947438515,-161.01442871,0.000598,15]
[357254062,1743947438524,-500.0,0.00059863,120]
[357254063,1743947438533,-500.0,0.00059863,120]
[357254064,1743947438543,-500.0,0.00059863,120]
[357254065,1743947438552,-500.0,0.00059863,120]
[357254066,1743947438561,-500.0,0.00059863,120]
[357254067,1743947438570,-500.0,0.00059863,120]
[357254068,1743947438580,-500.0,0.00059863,120]
[357254069,1743947438589,-500.0,0.00059863,120]
[357254070,1743947438599,-500.0,0.00059863,120]
[357254071,1743947438609,-500.0,0.00059863,120]
[357254072,1743947438622,-500.0,0.00059863,120]
[357254073,1743947438631,-500.0,0.00059863,120]
[357254074,1743947438641,-500.0,0.00059863,120]
[357254076,1743947438651,-534.57331517,0.00059863,120]
[357254077,1743947438660,-500.0,0.00059863,120]
[357254078,1743947438670,-500.0,0.00059863,120]
[357254079,1743947438679,-500.0,0.00059863,120]
[357254080,1743947438688,-500.0,0.00059863,120]
[357254081,1743947438699,-500.0,0.00059863,120]
[357254083,1743947438708,-500.0,0.00059863,120]
[357254084,1743947438718,-500.0,0.00059863,120]
[357254085,1743947438729,-500.0,0.00059863,120]
[357254086,1743947438738,-500.0,0.00059863,120]
[357254087,1743947438747,-500.0,0.00059863,120]
[357254088,1743947438756,-477.06065108,0.00059863,120]
[357254089,1743947438768,-22.93934892,0.00059863,120]
[357254090,1743947438777,-500.0,0.00059863,120]
[357254091,1743947438787,-647.5748,0.0005989,2]
[357254092,1743947438796,-1196.85108099,0.0005989,2]
[357254093,1743947438807,-599.63244151,0.0005989,2]
[357254094,1743947438819,-493418.2762775,0.0005989,2]
[357254095,1743947438828,-1376.5125,0.000599,2]
[357254096,1743947438837,-30084.6631,0.000599,2]
[357254097,1743947438847,-1236.7236,0.000599,2]
[357254098,1743947438856,-1271.9659,0.000599,2]
[357254099,1743947438869,-206.67886963,0.00059973,15]
[357254100,1743947438878,-38284.3971866,0.0005999,5]
[357254101,1743947438896,-248640.96400263,0.0005999,5]
[357254103,1743947440725,-19349.81630337,0.0005999,5]
[357254104,1743947440738,-7536.71111713,0.0005999,5]
[357254105,1743947440749,-500.0,0.00059999,2]
[357254106,1743947440759,-500.0,0.00059999,120]
[357254107,1743947440769,-288.50749193,0.00059999,120]
[357254108,1743947440780,-500.0,0.00059999,2]
[357254109,1743947440790,-500.0,0.00059999,120]
[357254110,1743947440800,-500.0,0.00059999,120]
[357254111,1743947440810,-564.6505359,0.00059999,120]
[357254112,1743947440820,-500.0,0.00059999,120]
[357254113,1743947440830,-190.96245398,0.00059999,2]
[357254114,1743947440840,-500.0,0.00059999,120]
[357254115,1743947440850,-500.0,0.00059999,2]
[357254116,1743947440860,-48709.51,0.00059999,7]
[357254117,1743947440870,-201.74172248,0.00059999,120]
[357254118,1743947440882,-500.0,0.00059999,120]
[357254119,1743947440892,-1299.53,0.00059999,120]
[357254120,1743947440901,-500.0,0.00059999,120]
[357254121,1743947440911,-1305.71723971,0.0006,61]
[357254122,1743947440921,-76108.87801885,0.0006,61]
[357254123,1743947440962,-2309.7882835,0.0006,61]
[357254168,1743947443560,-9454.2057,0.0005989,2]
[357254169,1743947443570,-19419.56015479,0.0006,61]
[357254170,1743947443750,-26534.75895323,0.0006,61]
[357254171,1743947443760,-28669.25192275,0.0006,120]
[357254172,1743947443772,-23778.2932182,0.0006,120]
[357254173,1743947444318,-3121.2202764,0.0006,120]
[357254181,1743947446440,-8247.90951494,0.0006,120]
[357254184,1743947446500,-837.68301817,0.0006,120]
[357254185,1743947446560,-823.8,0.0006,120]
[357254310,1743947468219,-455.04496303,0.00059999,120]
[357254311,1743947468243,-234105.86898235,0.0006,120]
[357254312,1743947468266,-301748.40292761,0.0006,120]
[357254313,1743947468290,-417254.25256378,0.0006,120]
[357254314,1743947468312,-497870.73,0.0006,120]
[357254315,1743947468340,-231.914525,0.0006,120]
[357254316,1743947468364,-231.914525,0.0006,120]
[357254317,1743947468388,-231.914525,0.0006,120]
[357254318,1743947468413,-231.914525,0.0006,120]
[357254319,1743947468436,-152.540197,0.0006,120]
[357254320,1743947468460,-151.0,0.0006,120]
[357254321,1743947468484,-158.928635,0.0006,120]
[357254322,1743947468510,-172.005936,0.0006,120]
[357254323,1743947468534,-172.005936,0.0006,120]
[357254324,1743947468560,-172.005936,0.0006,120]
[357254325,1743947468586,-172.005936,0.0006,120]
[357254326,1743947468610,-151.0,0.0006,120]
[357254327,1743947468636,-151.0,0.0006,120]
[357254328,1743947468661,-151.0,0.0006,120]
[357254329,1743947468686,-151.0,0.0006,120]
[357254330,1743947468718,-151.0,0.0006,120]
[357254331,1743947468749,-151.0,0.0006,120]
[357254332,1743947468784,-151.0,0.0006,120]
[357254333,1743947468812,-151.0,0.0006,120]
[357254334,1743947468840,-151.0,0.0006,120]
[357254335,1743947468867,-151.0,0.0006,120]
[357254336,1743947468895,-151.0,0.0006,120]
[357254337,1743947468922,-151.0,0.0006,120]
[357254338,1743947468950,-151.0,0.0006,120]
[357254339,1743947468979,-151.0,0.0006,120]
[357254340,1743947469010,-151.0,0.0006,120]
[357254341,1743947469036,-151.0,0.0006,120]
[357254342,1743947469063,-151.0,0.0006,120]
[357254343,1743947469090,-169.929131,0.0006,120]
[357254344,1743947469116,-151.0,0.0006,120]
[357254345,1743947469146,-151.0,0.0006,120]
[357254346,1743947469176,-151.0,0.0006,120]
[357254347,1743947469205,-151.0,0.0006,120]
[357254348,1743947469234,-151.0,0.0006,120]
[357254349,1743947469265,-151.0,0.0006,120]
[357254350,1743947469293,-151.0,0.0006,120]
[357254351,1743947469321,-248.035654,0.0006,120]
[357254352,1743947469349,-150.0,0.0006,61]
[357254353,1743947469378,-302.93376614,0.0006,120]
[357254354,1743947469406,-161.81,0.00060006,120]
[357254355,1743947469435,-152.53,0.00061792,120]
[357254356,1743947469463,-500.0,0.00062739,120]
[357254357,1743947469491,-500.0,0.00062739,120]
[357254358,1743947469526,-464.59188126,0.00062739,120]
[357254359,1743947469555,-184.47870615,0.00062739,120]
[357254360,1743947469583,-1299.53,0.00062739,120]
[357254361,1743947469611,-88888.0,0.000639,120]
[357254362,1743947469644,-200.0,0.0006401,30]
[357254363,1743947469672,-1933.34777405,0.00064899,120]
[357254364,1743947469700,-555.2776859,0.000649,30]
[357254365,1743947469730,-367.98112523,0.0006493,120]
[357254366,1743947469763,-370.74138229,0.00064999,120]
[357254367,1743947469790,-500.0,0.00064999,120]
[357254368,1743947469820,-500.0,0.00064999,120]
[357254369,1743947469848,-500.0,0.00064999,120]
[357254370,1743947469875,-500.0,0.00064999,120]
[357254371,1743947469902,-500.0,0.00064999,120]
[357254372,1743947469929,-500.0,0.00064999,120]
[357254373,1743947469957,-493.37490323,0.00064999,120]
[357254374,1743947469986,-500.0,0.00064999,120]
[357254375,1743947470015,-210.12,0.00064999,120]
[357254376,1743947470041,-500.0,0.00064999,120]
[357254377,1743947470067,-500.0,0.00064999,120]
[357254378,1743947470094,-500.0,0.00064999,120]
[357254379,1743947470121,-523.38508101,0.00064999,120]
[357254380,1743947470152,-1128000.0,0.00065,120]
[357254381,1743947470183,-167.79732881,0.00065,120]
[357254382,1743947470210,-231.914525,0.00065,120]
[357254383,1743947470237,-231.914525,0.00065,120]
[357254384,1743947470265,-172.005936,0.00065,120]
[357254385,1743947470292,-172.005936,0.00065,120]
[357254386,1743947470320,-151.0,0.00065,120]
[357254387,1743947470348,-151.0,0.00065,120]
[357254388,1743947470376,-151.0,0.00065,120]
[357254389,1743947470404,-209.393388,0.00065,120]
[357254390,1743947470432,-151.0,0.00065,120]
[357254391,1743947470459,-151.0,0.00065,120]
[357254392,1743947470486,-151.0,0.00065,120]
[357254393,1743947470514,-151.0,0.00065,120]
[357254394,1743947470711,-151.0,0.00065,120]
[357254395,1743947470738,-367.98112523,0.0006529,120]
[357254396,1743947470764,-571.91756691,0.00065479,120]
[357254397,1743947470789,-500.0,0.00065479,120]
[357254398,1743947470815,-1299.53,0.00065479,120]
[357254399,1743947470840,-367.98112525,0.00065494,120]
[357254400,1743947470865,-160.596,0.00065639,120]
[357254401,1743947470889,-178.17896037,0.000657,120]
[357254402,1743947470914,-210.12,0.00066369,120]
[357254403,1743947470940,-154.077989,0.00067,120]
[357254404,1743947470966,-1000.0,0.00067266,120]
[357254405,1743947470991,-500.0,0.00067739,120]
[357254406,1743947471016,-500.0,0.00067739,120]
[357254407,1743947471041,-500.0,0.00067739,120]